DepartmentFamily,Entity,Date,ExpenseType,ExpenseArea,Supplier,Transaction Number,Amount,Description,Supplier Type,VAT RegistrationNumber
BEIS,The Insolvency Service,06/06/2022,HR,Chief Executive Office,Nla Media Access Limited,300038455,"22,786.79",Staff Subscriptions,SME,
BEIS,The Insolvency Service,06/06/2022,HR,Chief Executive Office,Nla Media Access Limited,300038494,"2,278.68",Staff Subscriptions,SME,
BEIS,The Insolvency Service,06/06/2022,Training,Finance & Commercial,KPMG LLP,300038460,504.00,Training,Large,791788859
BEIS,The Insolvency Service,06/06/2022,Training,Finance & Commercial,KPMG LLP,300038500,864.00,Training,Large,791788859
BEIS,The Insolvency Service,06/06/2022,Legal - Costs of Criminal Prosecutions and Advice,Legal Services Division,18 Red Lion Court Chambers,300038497,516.00,Costs of Criminal Prosecutions and Advice,SME,766793665
BEIS,The Insolvency Service,06/06/2022,Legal - Costs of Criminal Prosecutions and Advice,Legal Services Division,18 Red Lion Court Chambers,300038499,"1,245.00",Costs of Criminal Prosecutions and Advice,SME,766793665
BEIS,The Insolvency Service,06/06/2022,ICT,Digital Technology Services,Geoff Smith Associates Ltd,300038454,"17,917.92",IT - Run,SME,813047166
BEIS,The Insolvency Service,06/06/2022,ICT,Digital Technology Services,e2e-assure Ltd,300038502,"22,823.16",IT - Run,SME,173116233
BEIS,The Insolvency Service,06/06/2022,Staff Costs - Non-Perms,Finance & Commercial,Robertson Bell Ltd,300038383,"2,934.12",Agency Staff & Contractor Costs,SME,913325843
BEIS,The Insolvency Service,07/06/2022,Estates - Property,Finance & Commercial,Blackpool Borough Council,300038453,976.68,Rates,Public Sector,
BEIS,The Insolvency Service,07/06/2022,ICT,Digital Technology Services,Bang Communications,300038459,"14,400.00",IT - Run,Large,569978254
BEIS,The Insolvency Service,07/06/2022,Staff Costs - Non-Perms,Finance & Commercial,ALEXANDER MANN SOLUTIONS,300038456,"61,707.82",Agency Staff & Contractor Costs,Large,7444926120
BEIS,The Insolvency Service,07/06/2022,Legal - Costs of Civil Litigation Disqualifications,Legal Services Division,18 St John Street Chambers,300038587,550.00,Civil Litigation Disqualifications Counsel Fees,SME,826858289
BEIS,The Insolvency Service,07/06/2022,Estates - Property,Finance & Commercial,Portal Chatham LLP,300038588,900.00,Landlord Service Charge,SME,933428619
BEIS,The Insolvency Service,08/06/2022,Training,People & Communications,KPMG,300038615,"1,725.00",Training,Large,
BEIS,The Insolvency Service,08/06/2022,Staff Costs - Non-Perms,Projects,SmartSourcing,300038590,"15,192.58",Agency Staff & Contractor Costs,SME,788507869
BEIS,The Insolvency Service,08/06/2022,Staff Costs - Non-Perms,Projects,SmartSourcing,300038591,"5,484.00",Agency Staff & Contractor Costs,SME,788507869
BEIS,The Insolvency Service,08/06/2022,Staff Costs - Non-Perms,Projects,SmartSourcing,300038592,"14,250.60",Agency Staff & Contractor Costs,SME,788507869
BEIS,The Insolvency Service,08/06/2022,Staff Costs - Non-Perms,Finance & Commercial,Spinwell Global Ltd,300038503,"3,312.06",Agency Staff & Contractor Costs,,257189569
BEIS,The Insolvency Service,09/06/2022,Other Costs,Business Service Division,Hm Treasury,300038580,"67,000.00",Banking & Nilo,Public Sector,888827544
BEIS,The Insolvency Service,09/06/2022,Legal - Costs of Criminal Prosecutions and Advice,Legal Services Division,Government Legal Department,300038685,530.88,Costs of Criminal Prosecutions and Advice,Public Sector,888823066
BEIS,The Insolvency Service,09/06/2022,"Printing, Stationary & Postage",Chief Executive Office,Cision,300038616,"1,076.40",Publications,Large,757158012
BEIS,The Insolvency Service,09/06/2022,Estates - Property,Finance & Commercial,Restore Datashred (Data Solutions 2016 Ltd T/A Restore Data),300038648,"1,386.42",Confidential Waste,Large,240193143
BEIS,The Insolvency Service,09/06/2022,ICT,Digital Technology Services,Experian Ltd,300038626,"2,268.91",IT - Run,Large,887133593
BEIS,The Insolvency Service,09/06/2022,ICT,Digital Technology Services,Experian Ltd,300038628,"9,783.60",IT - Run,Large,887133593
BEIS,The Insolvency Service,09/06/2022,Estates - Property,Finance & Commercial,Colliers International Property Consultants Ltd,300038622,"161,977.50",Rent,Large,158893550
BEIS,The Insolvency Service,09/06/2022,Estates - Property,Finance & Commercial,GPA (C/O Montagu Evans LLP),300038583,"41,473.96",Rent,Large,
BEIS,The Insolvency Service,09/06/2022,Estates - Property,Finance & Commercial,GPA (C/O Montagu Evans LLP),300038583,"64,404.92",Rent,Large,
BEIS,The Insolvency Service,09/06/2022,Off-Site Storage,Official Receiver Services,Ukcloud Ltd,300038623,"9,598.26",Storage - OR,SME,172647982
BEIS,The Insolvency Service,09/06/2022,HR,Chief Executive Office,Granicus,300038655,"11,709.60",Staff Subscriptions,SME,943669974
BEIS,The Insolvency Service,09/06/2022,ICT,Business Service Division,Syntec Ltd,300038649,617.56,Telephones - Charges,SME,264618586
BEIS,The Insolvency Service,09/06/2022,ICT,Digital Technology Services,Netcompany UK Ltd,300038627,"59,888.40",IT - Run,Large,171809009
BEIS,The Insolvency Service,09/06/2022,Staff Costs - Non-Perms,Projects,SmartSourcing,300038620,"16,036.61",Agency Staff & Contractor Costs,SME,788507869
BEIS,The Insolvency Service,09/06/2022,ICT,Business Service Division,Nomensa Limited,300038669,"171,390.00",IT - Run,Large,771727411
BEIS,The Insolvency Service,10/06/2022,ICT,Digital Technology Services,Ibm Uk Ltd,300038613,"57,509.76",IT - Run,Large,107328000
BEIS,The Insolvency Service,10/06/2022,Off-Site Storage,Official Receiver Services,Iron Mountain (Uk) Ltd,300038624,"3,245.04",Storage - HQ,Large,607937516
BEIS,The Insolvency Service,10/06/2022,Estates - Property,Finance & Commercial,Colliers International Property Consultants Ltd,300038618,"53,594.40",Landlord Service Charge,Large,158893550
BEIS,The Insolvency Service,10/06/2022,Legal - Costs of Criminal Prosecutions and Advice,Legal Services Division,Police And Crime Commissioner For Hampshire,300038706,510.00,Costs of Criminal Prosecutions and Advice,Public Sector,
BEIS,The Insolvency Service,10/06/2022,Estates - Property,Finance & Commercial,Edf Energy,300038619,592.38,Electricity,Large,523041202
BEIS,The Insolvency Service,10/06/2022,Estates - Property,Finance & Commercial,Edf Energy,300038683,"1,050.28",Electricity,Large,523041202
BEIS,The Insolvency Service,10/06/2022,"Printing, Stationary & Postage",Finance & Commercial,City Sprint Uk Ltd,300038671,"1,538.36",Courier,SME,997327364
BEIS,The Insolvency Service,10/06/2022,ICT,Digital Technology Services,Ee Ltd (Air Time),300038707,"20,135.90",Telephones - Charges,Large,771592016
BEIS,The Insolvency Service,10/06/2022,ICT,Digital Technology Services,Ee Ltd (Air Time),300038708,862.80,Telephones - Charges,Large,771592016
BEIS,The Insolvency Service,10/06/2022,Training,People & Communications,KPMG LLP,300038692,"2,200.00",Training,Large,791788859
BEIS,The Insolvency Service,10/06/2022,Legal - Costs of Criminal Prosecutions and Advice,Legal Services Division,18 Red Lion Court Chambers,300038689,570.00,Costs of Criminal Prosecutions and Advice,SME,766793665
BEIS,The Insolvency Service,10/06/2022,Legal - Costs of Criminal Prosecutions and Advice,Legal Services Division,18 Red Lion Court Chambers,300038690,750.00,Costs of Criminal Prosecutions and Advice,SME,766793665
BEIS,The Insolvency Service,10/06/2022,Investigation & Enforcement,Investigations & Enforcement Services,Mendip Media Group Ltd (Now Trading As Appen) - (Transcri),300038680,639.26,Case Related Costs,SME,609546425
BEIS,The Insolvency Service,10/06/2022,Off-Site Storage,Official Receiver Services,Restore Plc (Records Management),300038667,"8,103.63",Storage - HQ,Large,843863011
BEIS,The Insolvency Service,10/06/2022,Staff Costs - Non-Perms,Finance & Commercial,ALEXANDER MANN SOLUTIONS,300038665,"92,778.76",Agency Staff & Contractor Costs,Large,7444926120
BEIS,The Insolvency Service,10/06/2022,Off-Site Storage,Official Receiver Services,Oasis UK Ltd,300038691,833.84,Storage - HQ,Large,931579211
BEIS,The Insolvency Service,10/06/2022,Staff Costs - Perms,People & Communications,Edenred (UK Group) Limited,300038625,"29,025.00",Staff Costs - Perms,,
BEIS,The Insolvency Service,10/06/2022,Staff Costs - Non-Perms,Finance & Commercial,SmartSourcing,300038635,"15,846.00",Outside IR35 Non Perm Resource,SME,788507869
BEIS,The Insolvency Service,10/06/2022,Staff Costs - Non-Perms,Finance & Commercial,SmartSourcing,300038636,"13,860.00",Outside IR35 Non Perm Resource,SME,788507869
BEIS,The Insolvency Service,10/06/2022,Staff Costs - Non-Perms,Finance & Commercial,SmartSourcing,300038637,"20,563.20",Outside IR35 Non Perm Resource,SME,788507869
BEIS,The Insolvency Service,10/06/2022,Staff Costs - Non-Perms,Finance & Commercial,SmartSourcing,300038638,"14,238.00",Outside IR35 Non Perm Resource,SME,788507869
BEIS,The Insolvency Service,10/06/2022,Staff Costs - Non-Perms,Finance & Commercial,SmartSourcing,300038641,"16,380.00",Outside IR35 Non Perm Resource,SME,788507869
BEIS,The Insolvency Service,10/06/2022,Staff Costs - Non-Perms,Finance & Commercial,SmartSourcing,300038642,"14,490.00",Outside IR35 Non Perm Resource,SME,788507869
BEIS,The Insolvency Service,10/06/2022,Staff Costs - Non-Perms,Finance & Commercial,SmartSourcing,300038643,"14,490.00",Outside IR35 Non Perm Resource,SME,788507869
BEIS,The Insolvency Service,10/06/2022,Staff Costs - Non-Perms,Finance & Commercial,SmartSourcing,300038644,"11,856.00",Outside IR35 Non Perm Resource,SME,788507869
BEIS,The Insolvency Service,10/06/2022,Staff Costs - Non-Perms,Finance & Commercial,SmartSourcing,300038645,"8,820.00",Outside IR35 Non Perm Resource,SME,788507869
BEIS,The Insolvency Service,10/06/2022,Staff Costs - Non-Perms,Finance & Commercial,SmartSourcing,300038674,"2,760.00",Outside IR35 Non Perm Resource,SME,788507869
BEIS,The Insolvency Service,10/06/2022,Off-Site Storage,Official Receiver Services,Purdie Worldwide,300038676,930.69,Storage - HQ,Large,208569880
BEIS,The Insolvency Service,10/06/2022,Off-Site Storage,Official Receiver Services,Crown Records Management,300038612,933.88,Storage - HQ,SME,902181658
BEIS,The Insolvency Service,10/06/2022,ICT,Digital Technology Services,Advanced 365 Limited,300038657,"7,044.61",IT - Run,Large,927547983
BEIS,The Insolvency Service,10/06/2022,ICT,Digital Technology Services,Advanced 365 Limited,300038658,"5,084.78",IT - Run,Large,927547983
BEIS,The Insolvency Service,10/06/2022,ICT,Digital Technology Services,Nomensa Limited,300038693,"301,003.97",IT - Run,Large,771727411
BEIS,The Insolvency Service,10/06/2022,Other Costs,Official Receiver Services,Controlaccount PLC,300038629,"3,522.00",Financial Searches,SME,945758964
BEIS,The Insolvency Service,10/06/2022,Other Costs,Official Receiver Services,Controlaccount PLC,300038630,"3,432.00",Financial Searches,SME,945758964
BEIS,The Insolvency Service,10/06/2022,Other Costs,Official Receiver Services,Controlaccount PLC,300038631,"1,254.00",Financial Searches,SME,945758964
BEIS,The Insolvency Service,10/06/2022,Other Costs,Official Receiver Services,Controlaccount PLC,300038632,524.40,Financial Searches,SME,945758964
BEIS,The Insolvency Service,10/06/2022,Other Costs,Official Receiver Services,Controlaccount PLC,300038634,"1,632.00",Financial Searches,SME,945758964
BEIS,The Insolvency Service,10/06/2022,Staff Costs - Non-Perms,Finance & Commercial,Robertson Bell Ltd,300038507,"2,934.12",Agency Staff & Contractor Costs,SME,913325843
BEIS,The Insolvency Service,10/06/2022,Staff Costs - Non-Perms,Finance & Commercial,Robertson Bell Ltd,300038673,"1,760.47",Agency Staff & Contractor Costs,SME,913325843
BEIS,The Insolvency Service,10/06/2022,"Printing, Stationary & Postage",Finance & Commercial,PSL Print Management Ltd,300038686,"3,202.81",Printing and Reprographics,Large,448293129
BEIS,The Insolvency Service,10/06/2022,HR,People & Communications,Health Assurred Limited,300038675,597.30,Staff Welfare,SME,927524217
BEIS,The Insolvency Service,13/06/2022,Legal - Outsourced Investigation,Investigations & Enforcement Services,Burness Paull & Williamsons Solicitors,300038735,"2,466.50",Solicitors Investigations,Large,216218532
BEIS,The Insolvency Service,13/06/2022,Legal - Costs of Criminal Prosecutions and Advice,Legal Services Division,7 Harrington Street Chambers,300038729,544.80,Costs of Criminal Prosecutions and Advice,SME,733067446
BEIS,The Insolvency Service,13/06/2022,Legal - Costs of Civil Litigation Disqualifications,Legal Services Division,Pricewaterhouse Coopers LLP,300038714,"77,303.95",Costs of Civil Litigation Disqualifications,Large,243823957
BEIS,The Insolvency Service,13/06/2022,Staff Costs - Non-Perms,Finance & Commercial,SmartSourcing,300038640,"19,404.00",Outside IR35 Non Perm Resource,SME,788507869
BEIS,The Insolvency Service,13/06/2022,Staff Costs - Non-Perms,Projects,SmartSourcing,300038682,"3,290.40",Agency Staff & Contractor Costs,SME,788507869
BEIS,The Insolvency Service,13/06/2022,Staff Costs - Non-Perms,Finance & Commercial,SmartSourcing,300038701,"21,924.00",Outside IR35 Non Perm Resource,SME,788507869
BEIS,The Insolvency Service,13/06/2022,Staff Costs - Non-Perms,Finance & Commercial,SmartSourcing,300038704,"14,364.00",Outside IR35 Non Perm Resource,SME,788507869
BEIS,The Insolvency Service,13/06/2022,ICT,Projects,Nomensa Limited,300038681,"50,400.00",IT - Refresh,Large,771727411
BEIS,The Insolvency Service,13/06/2022,Legal - Costs of Civil Litigation Disqualifications,Legal Services Division,Kings Chambers Limited,300038724,"1,595.00",Civil Litigation Disqualifications Counsel Fees,,
BEIS,The Insolvency Service,14/06/2022,Estates - Property,Finance & Commercial,Jones Lang Lasalle (Amas Ltd) - (Rent & Property Costs),300038716,"10,584.00",Landlord Service Charge,Large,
BEIS,The Insolvency Service,14/06/2022,Estates - Property,Finance & Commercial,GPA (C/O Montagu Evans LLP),300038496,"52,660.69",Rent,Large,
BEIS,The Insolvency Service,14/06/2022,Estates - Property,Finance & Commercial,GPA (C/O Montagu Evans LLP),300038496,"64,187.50",Rent,Large,
BEIS,The Insolvency Service,14/06/2022,Estates - Property,Finance & Commercial,GPA (C/O Montagu Evans LLP),300038589,"19,101.32",Rent,Large,
BEIS,The Insolvency Service,14/06/2022,Estates - Property,Finance & Commercial,GPA (C/O Montagu Evans LLP),300038589,"44,791.67",Rent,Large,
BEIS,The Insolvency Service,14/06/2022,Estates - Property,Finance & Commercial,GPA (C/O Montagu Evans LLP),300038621,"3,645.00",Rent,Large,
BEIS,The Insolvency Service,14/06/2022,Estates - Property,Finance & Commercial,GPA (C/O Montagu Evans LLP),300038621,"32,660.73",Rent,Large,
BEIS,The Insolvency Service,14/06/2022,Staff Costs - Non-Perms,Finance & Commercial,SmartSourcing,300038702,"17,010.00",Outside IR35 Non Perm Resource,SME,788507869
BEIS,The Insolvency Service,14/06/2022,Staff Costs - Non-Perms,Finance & Commercial,SmartSourcing,300038703,"18,240.00",Outside IR35 Non Perm Resource,SME,788507869
BEIS,The Insolvency Service,14/06/2022,Estates - Property,Finance & Commercial,Oakley Property Ltd,300038713,"2,486.74",Landlord Service Charge,SME,754788085
BEIS,The Insolvency Service,15/06/2022,"Printing, Stationary & Postage",Finance & Commercial,Banner Business Services Ltd,300038755,"2,786.33",Office supplies,Large,731860439
BEIS,The Insolvency Service,15/06/2022,"Legal, Translation & Consultancy",Legal Services Division,Womble Bond Dickinson,300038753,"3,859.36",Legal Costs Other,Large,123392627
BEIS,The Insolvency Service,15/06/2022,Legal - Costs of Civil Litigation Disqualifications,Legal Services Division,Womble Bond Dickinson,300038754,"200,739.02",Costs of Civil Litigation Disqualifications,Large,123392627
BEIS,The Insolvency Service,15/06/2022,Legal - Costs of Civil Litigation Winding Up,Legal Services Division,Womble Bond Dickinson,300038761,"6,811.54",Costs of Civil Litigation Winding Up,Large,123392627
BEIS,The Insolvency Service,15/06/2022,Legal - Outsourced Investigation,Investigations & Enforcement Services,Howes Percival,300038744,"16,323.18",Solicitors Investigations,Large,119523573
BEIS,The Insolvency Service,15/06/2022,Legal - Costs of Civil Litigation Disqualifications,Legal Services Division,Howes Percival,300038745,"17,006.50",Costs of Civil Litigation Disqualifications,Large,119523573
BEIS,The Insolvency Service,15/06/2022,Legal - Costs of Civil Litigation Winding Up,Legal Services Division,Howes Percival,300038746,"1,935.00",Costs of Civil Litigation Winding Up,Large,119523573
BEIS,The Insolvency Service,15/06/2022,Legal - Outsourced Investigation,Investigations & Enforcement Services,Howes Percival,300038747,"2,857.50",Solicitors Investigations,Large,119523573
BEIS,The Insolvency Service,15/06/2022,Legal - Outsourced Investigation,Investigations & Enforcement Services,Gowling WLG (UK) LLP,300038736,"3,696.60",Solicitors Investigations,,858698838
BEIS,The Insolvency Service,15/06/2022,Legal - Outsourced Investigation,Investigations & Enforcement Services,Gowling WLG (UK) LLP,300038736,"10,604.00",Solicitors Investigations,,858698838
BEIS,The Insolvency Service,15/06/2022,Legal - Outsourced Investigation,Investigations & Enforcement Services,Gowling WLG (UK) LLP,300038737,"15,348.42",Solicitors Investigations,,858698838
BEIS,The Insolvency Service,15/06/2022,Legal - Outsourced Investigation,Investigations & Enforcement Services,Gowling WLG (UK) LLP,300038740,"2,158.50",Solicitors Investigations,,858698838
BEIS,The Insolvency Service,15/06/2022,ICT,Digital Technology Services,Daisy Corporate Services Trading Limited,300038766,"23,996.80",IT - Run,Large,722471355
BEIS,The Insolvency Service,15/06/2022,Estates - Property,Finance & Commercial,GPA (C/O Montagu Evans LLP),300038787,"1,472.61",Property Maintenance - CS2,Large,
BEIS,The Insolvency Service,15/06/2022,Legal - Outsourced Investigation,Investigations & Enforcement Services,Tlt Llp,300038743,"4,149.90",Solicitors Investigations,Large,3574583240
BEIS,The Insolvency Service,15/06/2022,Legal - Outsourced Investigation,Investigations & Enforcement Services,Tlt Llp,300038749,"14,816.80",Solicitors Investigations,Large,3574583240
BEIS,The Insolvency Service,15/06/2022,Legal - Costs of Civil Litigation Disqualifications,Legal Services Division,Tlt Llp,300038769,"1,152.70",Costs of Civil Litigation Disqualifications,Large,3574583240
BEIS,The Insolvency Service,15/06/2022,Legal - Costs of Civil Litigation Disqualifications,Legal Services Division,Tlt Llp,300038770,"1,523.20",Costs of Civil Litigation Disqualifications,Large,3574583240
BEIS,The Insolvency Service,15/06/2022,Legal - Costs of Civil Litigation Winding Up,Legal Services Division,Tlt Llp,300038773,"5,075.00",Costs of Civil Litigation Winding Up,Large,3574583240
BEIS,The Insolvency Service,15/06/2022,Legal - Costs of Civil Litigation Disqualifications,Legal Services Division,Pricewaterhouse Coopers LLP,300038750,"89,549.98",Costs of Civil Litigation Disqualifications,Large,243823957
BEIS,The Insolvency Service,15/06/2022,Staff Costs - Non-Perms,Finance & Commercial,SmartSourcing,300038748,"15,012.00",Outside IR35 Non Perm Resource,SME,788507869
BEIS,The Insolvency Service,15/06/2022,Legal - Costs of Civil Litigation Disqualifications,Legal Services Division,Mills & Reeve LLP,300038752,"1,305.90",Costs of Civil Litigation Disqualifications,Large,104834588
BEIS,The Insolvency Service,15/06/2022,Legal - Outsourced Investigation,Investigations & Enforcement Services,Mills & Reeve LLP,300038759,"13,323.90",Solicitors Investigations,Large,104834588
BEIS,The Insolvency Service,15/06/2022,Legal - Costs of Civil Litigation Disqualifications,Legal Services Division,9 Stone Buildings,300038796,660.00,Civil Litigation Disqualifications Counsel Fees,,277586642
BEIS,The Insolvency Service,15/06/2022,Legal - Costs of Civil Litigation Disqualifications,Legal Services Division,Kings Chambers Limited,300038756,550.00,Civil Litigation Disqualifications Counsel Fees,,
BEIS,The Insolvency Service,16/06/2022,Legal - Costs of Civil Litigation Disqualifications,Legal Services Division,Womble Bond Dickinson,300038776,"11,252.75",Costs of Civil Litigation Disqualifications,Large,123392627
BEIS,The Insolvency Service,16/06/2022,Legal - Costs of Civil Litigation Disqualifications,Legal Services Division,Womble Bond Dickinson,300038776,625.76,Costs of Civil Litigation Disqualifications,Large,123392627
BEIS,The Insolvency Service,16/06/2022,Legal - Costs of Recovering Civil Costs Awarded,Legal Services Division,Howes Percival,300038751,"1,996.00",Recovery of Civil Proceedings Costs Awarded,Large,119523573
BEIS,The Insolvency Service,16/06/2022,Legal - Costs of Recovering Civil Costs Awarded,Legal Services Division,Shepherd & Wedderburn Ws (Scottish Cases),300038764,"2,748.45",Recovery of Civil Proceedings Costs Awarded,Large,125425142
BEIS,The Insolvency Service,16/06/2022,Legal - Costs of Civil Litigation Disqualifications,Legal Services Division,Gowling WLG (UK) LLP,300038738,"1,272.00",Costs of Civil Litigation Disqualifications,,858698838
BEIS,The Insolvency Service,16/06/2022,Legal - Costs of Civil Litigation Disqualifications,Legal Services Division,Gowling WLG (UK) LLP,300038738,"27,511.54",Costs of Civil Litigation Disqualifications,,858698838
BEIS,The Insolvency Service,16/06/2022,Legal - Costs of Recovering Civil Costs Awarded,Legal Services Division,Gowling WLG (UK) LLP,300038739,"8,919.70",Recovery of Civil Proceedings Costs Awarded,,858698838
BEIS,The Insolvency Service,16/06/2022,Legal - Costs of Civil Litigation Disqualifications,Legal Services Division,Burness Paull & Williamsons Solicitors,300038733,"9,625.00",Costs of Civil Litigation Disqualifications,Large,216218532
BEIS,The Insolvency Service,16/06/2022,Legal - Costs of Criminal Prosecutions and Advice,Legal Services Division,23 Essex Street,300038807,"47,810.00",Costs of Criminal Prosecutions and Advice,,524199244
BEIS,The Insolvency Service,16/06/2022,Legal - Costs of Criminal Prosecutions and Advice,Legal Services Division,23 Essex Street,300038808,"11,690.00",Costs of Criminal Prosecutions and Advice,,524199244
BEIS,The Insolvency Service,16/06/2022,ICT,Digital Technology Services,Thales Uk Ltd. (L&J),300038792,"105,320.60",IT - Run,Large,198955680
BEIS,The Insolvency Service,16/06/2022,ICT,Digital Technology Services,Bang Communications,300038794,"45,360.00",IT - Run,Large,569978254
BEIS,The Insolvency Service,16/06/2022,Legal - Costs of Recovering Civil Costs Awarded,Legal Services Division,Shepherd & Wedderburn Ws (English Cases),300038762,"1,008.91",Recovery of Civil Proceedings Costs Awarded,Large,890559386
BEIS,The Insolvency Service,16/06/2022,Training,People & Communications,KPMG LLP,300038793,"10,129.00",Training,Large,791788859
BEIS,The Insolvency Service,16/06/2022,Legal - Costs of Criminal Prosecutions and Advice,Legal Services Division,5 St Andrews Hill,300038790,"1,968.00",Costs of Criminal Prosecutions and Advice,SME,703074472
BEIS,The Insolvency Service,16/06/2022,Legal - Costs of Civil Litigation Winding Up,Legal Services Division,Tlt Llp,300038767,"1,214.00",Costs of Civil Litigation Winding Up,Large,3574583240
BEIS,The Insolvency Service,16/06/2022,Legal - Costs of Recovering Civil Costs Awarded,Legal Services Division,Tlt Llp,300038772,978.10,Recovery of Civil Proceedings Costs Awarded,Large,3574583240
BEIS,The Insolvency Service,16/06/2022,Legal - Costs of Civil Litigation Disqualifications,Legal Services Division,Selbourne Chambers,300038809,633.33,Civil Litigation Disqualifications Counsel Fees,SME,1036299146
BEIS,The Insolvency Service,16/06/2022,ICT,Digital Technology Services,Gamma Telecom Limited,300038801,"1,631.23",Telephones - Charges,Large,823820344
BEIS,The Insolvency Service,16/06/2022,Other Costs,People & Communications,Edenred (Cycle to Work Scheme),300038789,950.00,Cycle to Work Scheme,,649503520
BEIS,The Insolvency Service,16/06/2022,Staff Costs - Non-Perms,Finance & Commercial,Robertson Bell Ltd,300038819,"2,934.12",Agency Staff & Contractor Costs,SME,913325843
BEIS,The Insolvency Service,16/06/2022,Training,Official Receiver Services,Ernst & Young LLP,300038799,"26,000.00",Training,Large,773831408
BEIS,The Insolvency Service,16/06/2022,"Printing, Stationary & Postage",Investigations & Enforcement Services,Jeeves International Badge Division Ltd,300038800,605.10,Office supplies,,155133922
BEIS,The Insolvency Service,17/06/2022,Training,People & Communications,KPMG LLP,300038822,"1,500.00",Training,Large,791788859
BEIS,The Insolvency Service,17/06/2022,Staff Costs - Non-Perms,Finance & Commercial,SmartSourcing,300038765,"15,876.00",Outside IR35 Non Perm Resource,SME,788507869
BEIS,The Insolvency Service,17/06/2022,Staff Costs - Non-Perms,Finance & Commercial,SmartSourcing,300038828,"17,892.00",Outside IR35 Non Perm Resource,SME,788507869
BEIS,The Insolvency Service,17/06/2022,Staff Costs - Non-Perms,Finance & Commercial,SmartSourcing,300038829,"16,200.00",Outside IR35 Non Perm Resource,SME,788507869
BEIS,The Insolvency Service,17/06/2022,Staff Costs - Non-Perms,Finance & Commercial,SmartSourcing,300038830,"11,400.00",Outside IR35 Non Perm Resource,SME,788507869
BEIS,The Insolvency Service,17/06/2022,ICT,Digital Technology Services,Equiniti ICS Ltd,300038835,"32,500.00",IT - Run,SME,
BEIS,The Insolvency Service,17/06/2022,ICT,Digital Technology Services,Phoenix Software Limited,300038581,"849,510.04",IT - Run,SME,755349015
BEIS,The Insolvency Service,17/06/2022,ICT,Digital Technology Services,Phoenix Software Limited,300038582,"918,283.44",IT - Run,SME,755349015
BEIS,The Insolvency Service,17/06/2022,Investigation & Enforcement,Investigations & Enforcement Services,Park Place Technologies Limited,300038834,950.00,Case Related Costs,Large,336276491
BEIS,The Insolvency Service,20/06/2022,Staff Costs - Non-Perms,Finance & Commercial,ALEXANDER MANN SOLUTIONS,300038797,"59,368.85",Agency Staff & Contractor Costs,Large,7444926120
BEIS,The Insolvency Service,20/06/2022,Staff Costs - Non-Perms,Projects,SmartSourcing,300038831,"5,484.00",Agency Staff & Contractor Costs,SME,788507869
BEIS,The Insolvency Service,20/06/2022,Staff Costs - Non-Perms,Finance & Commercial,Spinwell Global Ltd,300038711,"1,987.24",Agency Staff & Contractor Costs,,257189569
BEIS,The Insolvency Service,20/06/2022,Staff Costs - Non-Perms,Finance & Commercial,Spinwell Global Ltd,300038827,"3,312.06",Agency Staff & Contractor Costs,,257189569
BEIS,The Insolvency Service,21/06/2022,ICT,Digital Technology Services,Bt Telephone Payment Centre,300038832,"23,423.56",Telephones - Charges,Large,245719348
BEIS,The Insolvency Service,21/06/2022,"Printing, Stationary & Postage",Business Service Division,Quadient UK,300038376,"1,104.00",Postage,Large,
BEIS,The Insolvency Service,21/06/2022,HR,Business Service Division,Cragg Ross Dawson Ltd,300038823,510.00,Recruitment Costs,SME,289382407
BEIS,The Insolvency Service,21/06/2022,Staff Costs - Non-Perms,Finance & Commercial,SmartSourcing,300038821,"14,580.00",Outside IR35 Non Perm Resource,SME,788507869
BEIS,The Insolvency Service,21/06/2022,ICT,Digital Technology Services,Charterhouse Voice and Data Limited,300038380,"20,687.92",Telephones - Charges,,311389028
BEIS,The Insolvency Service,21/06/2022,Estates - Property,Finance & Commercial,Plymouth City Council (Rates),300038836,756.00,Rates,Public Sector,
BEIS,The Insolvency Service,21/06/2022,ICT,Digital Technology Services,Phoenix Software Limited,300038843,"3,193.44",IT - Run,SME,755349015
BEIS,The Insolvency Service,21/06/2022,ICT,Digital Technology Services,Phoenix Software Limited,300038844,"96,919.66",IT - Run,SME,755349015
BEIS,The Insolvency Service,22/06/2022,ICT,Digital Technology Services,Bt Telephone Payment Centre,300038869,"6,006.84",IT - Run,Large,245719348
BEIS,The Insolvency Service,22/06/2022,ICT,Digital Technology Services,Bt Telephone Payment Centre,300038870,"5,720.68",IT - Run,Large,245719348
BEIS,The Insolvency Service,22/06/2022,ICT,Digital Technology Services,Ibm Uk Ltd,300038584,"17,050.00",IT - Run,Large,107328000
BEIS,The Insolvency Service,22/06/2022,"Printing, Stationary & Postage",Finance & Commercial,Quadient UK Limited (Franking Machine top ups),300038851,"10,667.00",Postage,,
BEIS,The Insolvency Service,22/06/2022,Training,People & Communications,KPMG LLP,300038852,"4,311.00",Training,Large,791788859
BEIS,The Insolvency Service,22/06/2022,Training,People & Communications,KPMG LLP,300038860,"2,500.00",Training,Large,791788859
BEIS,The Insolvency Service,22/06/2022,Legal - Outsourced Investigation,Official Receiver Services,Pricewaterhouse Coopers LLP,300038853,"1,432.46",Solicitors Investigations,Large,243823957
BEIS,The Insolvency Service,22/06/2022,"Printing, Stationary & Postage",Finance & Commercial,Cabinet Office,300038857,"17,436.04",Printing and Reprographics,Large,888801080
BEIS,The Insolvency Service,22/06/2022,Legal - Costs of Civil Litigation Disqualifications,Legal Services Division,Enterprise Chambers,300038867,604.16,Civil Litigation Disqualifications Counsel Fees,SME,
BEIS,The Insolvency Service,23/06/2022,HR,People & Communications,LNRS Data Services Limited,300038907,"6,823.20",Staff Subscriptions,,730859520
BEIS,The Insolvency Service,23/06/2022,Legal - Outsourced Investigation,Official Receiver Services,Pricewaterhouse Coopers LLP,300038854,"20,401.66",Solicitors Investigations,Large,243823957
BEIS,The Insolvency Service,23/06/2022,Staff Costs - Perms,People & Communications,SUNDRY SUPPLIER,300038894,"7,609.75",INSSpire Award Vouchers,,
BEIS,The Insolvency Service,23/06/2022,Staff Costs - Perms,People & Communications,SUNDRY SUPPLIER,300038895,"7,202.11",INSSpire Award Vouchers,,
BEIS,The Insolvency Service,23/06/2022,Legal - Costs of Civil Litigation Winding Up,Legal Services Division,Old Sqaure Tax Chambers,300038915,560.00,Civil Litigation Winding Up Counsel Fees,,299121185
BEIS,The Insolvency Service,24/06/2022,"Legal, Translation & Consultancy",People & Communications,Government Legal Department,300038917,"1,209.90",Legal Costs Other,Public Sector,888823066
BEIS,The Insolvency Service,24/06/2022,"Legal, Translation & Consultancy",People & Communications,Government Legal Department,300038918,"1,118.90",Legal Costs Other,Public Sector,888823066
BEIS,The Insolvency Service,24/06/2022,Other Costs,Finance & Commercial,Equifax Ltd,300038920,"19,902.00",Financial Searches,Large,565629213
BEIS,The Insolvency Service,24/06/2022,ICT,Digital Technology Services,Bt Telephone Payment Centre,300038897,"6,422.22",IT - Run,Large,245719348
BEIS,The Insolvency Service,24/06/2022,"Printing, Stationary & Postage",Finance & Commercial,Royal Mail (Response Services),300038963,825.00,Postage,Large,243170002
BEIS,The Insolvency Service,24/06/2022,Training,Finance & Commercial,Kaplan Financial,300038906,"1,353.33",Training,,
BEIS,The Insolvency Service,24/06/2022,Training,People & Communications,KPMG LLP,300038913,"1,725.00",Training,Large,791788859
BEIS,The Insolvency Service,24/06/2022,Investigation & Enforcement,Investigations & Enforcement Services,Mendip Media Group Ltd (Now Trading As Appen) - (Transcri),300038948,881.65,Case Related Costs,SME,609546425
BEIS,The Insolvency Service,24/06/2022,Staff Costs - Non-Perms,Finance & Commercial,ALEXANDER MANN SOLUTIONS,300038902,"107,601.59",Agency Staff & Contractor Costs,Large,7444926120
BEIS,The Insolvency Service,24/06/2022,"Legal, Translation & Consultancy",Official Receiver Services,Maitland Chambers,300038901,"22,500.00",Legal Costs Other,SME,171817696
BEIS,The Insolvency Service,24/06/2022,"Legal, Translation & Consultancy",Official Receiver Services,Maitland Chambers,300038899,"80,040.00",Legal Costs Other,SME,171817696
BEIS,The Insolvency Service,24/06/2022,"Legal, Translation & Consultancy",Official Receiver Services,Maitland Chambers,300038900,"2,160.00",Legal Costs Other,SME,171817696
BEIS,The Insolvency Service,24/06/2022,"Legal, Translation & Consultancy",Legal Services Division,FCDO Services,300038909,"1,143.12",Translation and Transcription Services,Large,
BEIS,The Insolvency Service,27/06/2022,"Legal, Translation & Consultancy","Strategy, Policy & Analysis",Government Legal Department,300038961,"2,613.84",Legal Costs Other,Public Sector,888823066
BEIS,The Insolvency Service,27/06/2022,ICT,Digital Technology Services,Thales Uk Ltd. (L&J),300038966,"105,320.60",IT - Run,Large,198955680
BEIS,The Insolvency Service,27/06/2022,Investigation & Enforcement,Investigations & Enforcement Services,Mendip Media Group Ltd (Now Trading As Appen) - (Transcri),300038968,"1,413.48",Case Related Costs,SME,609546425
BEIS,The Insolvency Service,27/06/2022,Staff Costs - Non-Perms,Projects,Red Snapper Recruitment,300038956,"2,032.56",Outside IR35 Non Perm Resource,SME,835435718
BEIS,The Insolvency Service,27/06/2022,Staff Costs - Non-Perms,Projects,Red Snapper Recruitment,300038957,"3,387.60",Outside IR35 Non Perm Resource,SME,835435718
BEIS,The Insolvency Service,27/06/2022,Staff Costs - Non-Perms,Projects,Red Snapper Recruitment,300038958,"3,387.60",Outside IR35 Non Perm Resource,SME,835435718
BEIS,The Insolvency Service,27/06/2022,Staff Costs - Non-Perms,Projects,Red Snapper Recruitment,300038959,"3,387.60",Outside IR35 Non Perm Resource,SME,835435718
BEIS,The Insolvency Service,27/06/2022,Staff Costs - Non-Perms,Business Service Division,Randstad Solutions Ltd,300038962,"2,843.77",Agency Staff & Contractor Costs,Large,492435726
BEIS,The Insolvency Service,27/06/2022,HR,"Strategy, Policy & Analysis",Newground CIC,300038960,899.00,Staff Welfare,,
BEIS,The Insolvency Service,28/06/2022,Estates - Property,Finance & Commercial,Cbre Limited,300038440,"1,285.30",Landlord Service Charge,Large,
BEIS,The Insolvency Service,28/06/2022,Estates - Property,Finance & Commercial,Cbre Limited,300038639,"1,210.18",Landlord Service Charge,Large,
BEIS,The Insolvency Service,28/06/2022,HR,Investigations & Enforcement Services,Financial Crime Information Network,300038952,"9,195.60",Staff Subscriptions,SME,
BEIS,The Insolvency Service,28/06/2022,Investigation & Enforcement,Investigations & Enforcement Services,Mendip Media Group Ltd (Now Trading As Appen) - (Transcri),300038975,501.00,Case Related Costs,SME,609546425
BEIS,The Insolvency Service,28/06/2022,Staff Costs - Perms,People & Communications,SUNDRY SUPPLIER,300038893,"154,602.97",INSSpire Award Vouchers,,
BEIS,The Insolvency Service,28/06/2022,Staff Costs - Non-Perms,Projects,SmartSourcing,300038967,"5,484.00",Agency Staff & Contractor Costs,SME,788507869
BEIS,The Insolvency Service,28/06/2022,"Legal, Translation & Consultancy",Finance & Commercial,Avison Young (Non Rent/Legal Advice),300038914,"14,474.26",Legal Costs Other,SME,
BEIS,The Insolvency Service,28/06/2022,Staff Costs - Non-Perms,Finance & Commercial,Spinwell Global Ltd,300038955,"3,312.06",Agency Staff & Contractor Costs,,257189569
BEIS,The Insolvency Service,29/06/2022,Estates - Property,Finance & Commercial,Acenes House Ltd,300038978,"15,600.00",Rent,SME,182696958
BEIS,The Insolvency Service,29/06/2022,Estates - Property,Finance & Commercial,Acenes House Ltd,300038978,"3,360.00",Landlord Service Charge,SME,182696958
BEIS,The Insolvency Service,29/06/2022,Off-Site Storage,Finance & Commercial,Iron Mountain (Uk) Ltd,300038977,"35,415.74",Storage - OR,Large,607937516
BEIS,The Insolvency Service,29/06/2022,Training,Chief Executive Office,KPMG LLP,300038987,626.00,Training,Large,791788859
BEIS,The Insolvency Service,29/06/2022,Estates - Property,Finance & Commercial,Vickery Holman (Exeter),300038904,"13,866.29",Landlord Service Charge,,52008956
BEIS,The Insolvency Service,30/06/2022,Training,Chief Executive Office,BPP Professional Education,300039002,"1,865.00",Training,Large,466451629
BEIS,The Insolvency Service,30/06/2022,Training,People & Communications,KPMG LLP,300038984,"1,725.00",Training,Large,791788859
BEIS,The Insolvency Service,30/06/2022,Training,People & Communications,KPMG LLP,300038985,"2,200.00",Training,Large,791788859
BEIS,The Insolvency Service,30/06/2022,Training,People & Communications,KPMG LLP,300038986,"1,725.00",Training,Large,791788859
BEIS,The Insolvency Service,30/06/2022,Training,People & Communications,KPMG LLP,300039016,"1,725.00",Training,Large,791788859
BEIS,The Insolvency Service,30/06/2022,Training,People & Communications,KPMG LLP,300039019,"2,150.00",Training,Large,791788859
BEIS,The Insolvency Service,30/06/2022,Investigation & Enforcement,Investigations & Enforcement Services,Mendip Media Group Ltd (Now Trading As Appen) - (Transcri),300038991,700.54,Case Related Costs,SME,609546425
BEIS,The Insolvency Service,30/06/2022,Staff Costs - Non-Perms,Finance & Commercial,ALEXANDER MANN SOLUTIONS,300038990,"105,962.99",Agency Staff & Contractor Costs,Large,7444926120
BEIS,The Insolvency Service,30/06/2022,Off-Site Storage,Official Receiver Services,Oasis UK Ltd,300039004,808.83,Storage - HQ,Large,931579211
BEIS,The Insolvency Service,30/06/2022,Staff Costs - Non-Perms,Finance & Commercial,SmartSourcing,300038976,"12,418.56",Outside IR35 Non Perm Resource,SME,788507869
BEIS,The Insolvency Service,30/06/2022,Estates - Property,Projects,Advanced 365 Limited,300038989,"14,472.00",Estates Professional Services,Large,927547983
BEIS,The Insolvency Service,30/06/2022,Legal - Costs of Criminal Prosecutions and Advice,Legal Services Division,2 Hare Court,300039017,"2,629.00",Costs of Criminal Prosecutions and Advice,,788418867
